bitfinex/quotes_BTCUSD_20241028
["timestamp","ask_amount","ask_price","bid_price","bid_amount"]
[1730109232911,0.62421005,68575.0,68574.0,0.01421168]
[1730109233173,0.47704377,68575.0,68574.0,0.01421168]
[1730109233415,0.24652295,68575.0,68574.0,0.02388003]
[1730109233643,0.35428336,68575.0,68574.0,0.02388003]
[1730109233882,0.46704377,68575.0,68574.0,0.02388003]
[1730109234101,0.35428336,68575.0,68574.0,0.02388003]
[1730109234329,0.35428336,68575.0,68574.0,0.06744624]
[1730109234330,0.16212295,68575.0,68574.0,0.06744624]
[1730109234592,0.16212295,68575.0,68574.0,0.08922935]
[1730109234593,0.33392907,68575.0,68574.0,0.08922935]
[1730109234845,0.33392907,68575.0,68574.0,0.19557579]
[1730109235143,0.33392907,68575.0,68574.0,0.26897885]
[1730109235385,0.33292907,68575.0,68574.0,0.20463331]
[1730109235614,0.33292907,68575.0,68574.0,0.19657579]
[1730109235850,0.33292907,68575.0,68574.0,0.19557579]
[1730109236080,0.33292907,68575.0,68574.0,0.23580205]
[1730109236302,0.32744844,68575.0,68574.0,0.28498416]
[1730109236528,0.32744844,68575.0,68574.0,0.26892594]
[1730109236754,0.32744844,68575.0,68574.0,0.27698459]
[1730109236990,0.32744844,68575.0,68574.0,0.2166352]
[1730109237217,0.32744844,68575.0,68574.0,0.20057652]
[1730109237720,0.32744844,68575.0,68574.0,0.20557652]
[1730109238187,0.32744844,68575.0,68574.0,0.20057652]
[1730109238410,0.32639706,68575.0,68574.0,0.28770218]
[1730109238632,0.32639706,68575.0,68574.0,0.30949617]
[1730109238873,0.32639706,68575.0,68574.0,0.31349617]
[1730109238874,0.01179913,68575.0,68574.0,0.31349617]
[1730109239116,0.01179913,68575.0,68574.0,0.33018461]
[1730109239629,0.01262213,68575.0,68574.0,0.31929312]
[1730109239857,0.15844713,68575.0,68574.0,0.33018173]
[1730109240804,0.15844713,68575.0,68574.0,0.20458173]
[1730109241956,0.15844713,68575.0,68574.0,0.20457935]
[1730109242938,0.15844713,68575.0,68574.0,0.31349038]
[1730109244530,0.1606351,68575.0,68574.0,0.31349038]
[1730109246366,0.1606351,68575.0,68574.0,0.04376701]
[1730109247828,0.0148101,68575.0,68574.0,0.04376701]
[1730109248038,0.0148101,68575.0,68574.0,0.18959401]
[1730109248667,0.0148101,68575.0,68574.0,0.04376701]
[1730109248911,0.1606351,68575.0,68574.0,0.04376701]
[1730109249379,0.33244122,68575.0,68574.0,0.04376701]
[1730109250905,0.18661622,68575.0,68574.0,0.04376701]
[1730109251367,0.18661622,68575.0,68574.0,0.18959401]
[1730109251607,0.18661622,68575.0,68574.0,0.04376701]
[1730109251608,0.0148101,68575.0,68574.0,0.04376701]
[1730109251855,0.0118101,68575.0,68574.0,0.18959401]
[1730109252068,0.0118101,68575.0,68574.0,0.34009782]
[1730109252298,0.00301097,68575.0,68574.0,0.46719782]
[1730109252512,0.00301097,68575.0,68574.0,0.54619782]
[1730109252725,0.003,68578.0,68574.0,0.56797505]
[1730109252963,0.003,68578.0,68577.0,0.145821]
[1730109253178,0.003,68578.0,68577.0,0.31855721]
[1730109253393,0.003,68578.0,68577.0,0.29632481]
[1730109253605,0.003,68578.0,68577.0,0.18361269]
[1730109253813,0.31842963,68582.0,68577.0,0.32943269]
[1730109254020,0.31842963,68582.0,68578.0,0.32943069]
[1730109254233,0.00881343,68581.0,68579.0,0.03310888]
[1730109254455,0.00881343,68581.0,68580.0,0.32942769]
[1730109254668,0.00081251,68582.0,68581.0,0.145812]
[1730109254890,0.00081251,68582.0,68581.0,0.45892469]
[1730109255113,0.00081251,68582.0,68581.0,0.31311269]
[1730109255370,0.00081251,68582.0,68581.0,0.16260888]
[1730109255371,0.259306,68582.0,68581.0,0.16260888]
[1730109255600,0.12235933,68582.0,68581.0,0.45395659]
[1730109255819,0.00967584,68582.0,68581.0,0.6044604]
[1730109256056,0.00967584,68582.0,68581.0,0.7502724]
[1730109256277,0.00081251,68582.0,68581.0,0.7622724]
[1730109256501,0.00081251,68582.0,68581.0,0.74004736]
[1730109256723,0.00081251,68582.0,68581.0,0.7622381]
[1730109257576,0.00081251,68582.0,68581.0,0.7502381]
[1730109257785,0.31836475,68582.0,68581.0,0.33442229]
[1730109258048,0.31836475,68582.0,68581.0,0.34642229]
[1730109258278,0.32722808,68582.0,68581.0,0.33642229]
[1730109258489,0.32722808,68582.0,68581.0,0.34842229]
[1730109258490,0.00967584,68582.0,68581.0,0.34842229]
[1730109258718,0.00967584,68582.0,68581.0,0.4749261]
[1730109258936,0.00967584,68582.0,68581.0,0.6207381]
[1730109259183,0.00081251,68582.0,68581.0,0.4949261]
[1730109259401,0.00967907,68582.0,68581.0,0.4849261]
[1730109259616,0.00081251,68582.0,68581.0,0.6307381]
[1730109259829,0.00967907,68582.0,68581.0,0.6307381]
[1730109260019,0.00081251,68582.0,68581.0,0.6307381]
[1730109260241,0.00967907,68582.0,68581.0,0.6307381]
[1730109260483,0.00967907,68582.0,68581.0,0.59884734]
[1730109260484,0.00081251,68582.0,68581.0,0.59884734]
[1730109260693,0.00081251,68582.0,68581.0,0.61784734]
[1730109260941,0.00081251,68582.0,68581.0,0.60984734]
[1730109260942,0.00967907,68582.0,68581.0,0.60984734]
[1730109261161,0.31754724,68585.0,68581.0,0.50111636]
[1730109261394,0.00886656,68582.0,68581.0,0.011]
[1730109261624,0.145808,68583.0,68581.0,0.3132925]
[1730109261855,0.145808,68583.0,68582.0,0.28055288]
[1730109262510,0.31754724,68585.0,68582.0,0.43105669]
[1730109262744,0.31754724,68585.0,68583.0,0.19358115]
[1730109262745,0.145807,68584.0,68583.0,0.19358115]
[1730109263226,0.17174224,68585.0,68583.0,0.25880317]
[1730109263453,0.145806,68584.0,68583.0,0.06522202]
[1730109263712,0.145806,68584.0,68583.0,0.25874754]
[1730109263944,0.145806,68584.0,68583.0,0.16050418]
[1730109264158,0.145806,68584.0,68583.0,0.25874144]
[1730109264592,0.145806,68584.0,68583.0,0.26774144]
[1730109264844,0.15685738,68584.0,68583.0,0.04014955]
[1730109265321,0.15685738,68584.0,68583.0,0.03951828]
[1730109265322,0.51716119,68584.0,68583.0,0.03951828]
[1730109266744,0.36665738,68584.0,68583.0,0.03951828]
[1730109267184,0.36665738,68584.0,68583.0,0.01251828]
[1730109267637,0.145825,68575.0,68574.0,0.00967663]
[1730109267859,0.145825,68575.0,68574.0,0.03183889]
[1730109268101,0.14785938,68584.0,68580.0,0.145814]
[1730109268324,0.17174224,68581.0,68578.0,0.04349174]
[1730109268555,0.005,68582.0,68575.0,0.08698209]
[1730109268556,0.145819,68578.0,68577.0,0.06523762]
[1730109268785,0.145819,68578.0,68577.0,0.04349149]
[1730109269012,0.145819,68578.0,68577.0,0.06564938]
[1730109269471,0.145819,68578.0,68577.0,0.04349149]
[1730109269916,0.145819,68578.0,68575.0,0.06523762]
[1730109269917,0.145821,68577.0,68576.0,0.04349149]
[1730109270347,0.145823,68576.0,68575.0,0.06523762]
[1730109270803,0.1546969,68576.0,68575.0,0.0873978]
[1730109271242,0.1546969,68576.0,68575.0,0.09542966]
[1730109271690,0.1546969,68576.0,68575.0,0.09842966]
[1730109272405,0.1546969,68576.0,68575.0,0.09542966]
[1730109272866,0.1546969,68576.0,68575.0,0.10042966]
[1730109273085,0.0088739,68576.0,68575.0,0.10042966]
[1730109273325,0.0088739,68576.0,68575.0,0.23822289]
[1730109273569,0.17174224,68583.0,68576.0,0.291647]
[1730109273790,0.145811,68582.0,68578.0,0.00803161]
[1730109274017,0.15550466,68582.0,68579.0,0.03019188]
[1730109274241,0.15550466,68582.0,68580.0,0.02216027]
[1730109274494,0.00969366,68582.0,68581.0,0.02216027]
[1730109274958,0.15550366,68582.0,68581.0,0.02216027]
[1730109276094,0.15550366,68582.0,68581.0,0.03616027]
[1730109277199,0.15550366,68582.0,68581.0,0.02915947]
[1730109277467,0.15550366,68582.0,68581.0,0.03315947]
[1730109277701,0.15550366,68582.0,68581.0,0.02616061]
[1730109277941,0.15550366,68582.0,68581.0,0.03116061]
[1730109279286,0.13022815,68582.0,68581.0,0.03116061]
[1730109279524,0.15307137,68582.0,68581.0,0.03116061]
[1730109280224,0.15307137,68582.0,68581.0,0.02716061]
[1730109280225,0.45307757,68582.0,68581.0,0.02716061]
[1730109280446,0.21737953,68582.0,68581.0,0.02716061]
[1730109280677,0.21737953,68582.0,68581.0,0.01352453]
[1730109280908,0.21737953,68582.0,68581.0,0.01352827]
[1730109281376,0.21737953,68582.0,68581.0,0.01452827]
[1730109281817,0.21837953,68582.0,68581.0,0.01452827]
[1730109282051,0.21837953,68582.0,68581.0,0.01252827]
[1730109282273,0.21937953,68582.0,68581.0,0.01252827]
[1730109282490,0.21937953,68582.0,68581.0,0.00481816]
[1730109283800,0.21937953,68582.0,68581.0,0.01252463]
[1730109284018,0.30040367,68582.0,68581.0,0.00481816]
[1730109284468,0.45090748,68582.0,68581.0,0.00481816]
[1730109285201,0.45347014,68582.0,68581.0,0.00481816]
[1730109285613,0.472446,68582.0,68581.0,0.00481816]
[1730109286122,0.473269,68582.0,68581.0,0.00481816]
[1730109288813,0.48701911,68582.0,68581.0,0.00481816]
[1730109289324,0.50986583,68582.0,68581.0,0.00481816]
[1730109292407,0.15687438,68576.0,68575.0,0.001646]
[1730109292644,0.26963268,68576.0,68575.0,0.02380891]
[1730109292878,0.28160894,68576.0,68575.0,0.02380891]
[1730109293807,0.28160894,68576.0,68575.0,0.02880891]
[1730109298237,0.27055756,68576.0,68575.0,0.02880891]
[1730109298961,0.27660894,68576.0,68575.0,0.02880891]
[1730109299177,0.27160894,68576.0,68575.0,0.02880891]
[1730109299641,0.27660894,68576.0,68575.0,0.02580891]
[1730109299872,0.28160894,68576.0,68575.0,0.02580891]
[1730109300126,0.28160894,68576.0,68575.0,0.03080891]
[1730109300605,0.27160894,68576.0,68575.0,0.03883931]
[1730109300840,0.15779926,68576.0,68575.0,0.02780891]
[1730109301070,0.15779926,68576.0,68575.0,0.03883931]
[1730109301292,0.15779926,68576.0,68575.0,0.24753931]
[1730109301293,0.01197626,68576.0,68575.0,0.24753931]
[1730109301519,0.15779926,68576.0,68575.0,0.23950891]
[1730109301764,0.145823,68576.0,68575.0,0.23950891]
[1730109302054,0.15486432,68576.0,68575.0,0.2830093]
[1730109302531,0.17770971,68576.0,68575.0,0.2830093]
[1730109302776,0.17770971,68576.0,68575.0,0.3047595]
[1730109302996,0.17770971,68576.0,68575.0,0.23950891]
[1730109302997,0.03478992,68576.0,68575.0,0.23950891]
[1730109303893,0.03478992,68576.0,68575.0,0.61121216]
[1730109304134,0.02284539,68576.0,68575.0,0.54596157]
[1730109304358,0.02284539,68576.0,68575.0,0.700414]
[1730109304661,0.02284539,68576.0,68575.0,0.80916498]
[1730109304900,0.000823,68582.0,68581.0,0.145812]
[1730109305124,0.000823,68582.0,68581.0,0.26975341]
[1730109305372,0.000823,68582.0,68581.0,0.41556541]
[1730109305601,0.000823,68582.0,68581.0,0.53786541]
[1730109306082,0.000823,68582.0,68581.0,0.76406922]
[1730109306331,0.000823,68582.0,68581.0,0.68101281]
[1730109306577,0.000823,68582.0,68581.0,0.7897691]
[1730109307057,0.00018937,68586.0,68585.0,0.145804]
[1730109307291,0.00018937,68586.0,68585.0,0.56605926]
[1730109307552,0.00018937,68586.0,68585.0,0.48300481]
[1730109308485,0.01012929,68586.0,68585.0,0.92041481]
[1730109309154,0.00018937,68586.0,68585.0,1.00737614]
[1730109309598,0.00018937,68586.0,68585.0,1.02037614]
[1730109309852,0.00018937,68586.0,68585.0,1.45088234]
[1730109310068,0.000826,68591.0,68590.0,0.34934162]
[1730109310299,0.000826,68591.0,68590.0,0.95938834]
[1730109310973,0.000826,68591.0,68590.0,1.25015125]
[1730109311231,0.000826,68591.0,68590.0,1.1197917]
[1730109311481,0.000826,68591.0,68590.0,1.1477917]
[1730109311728,0.000826,68591.0,68590.0,1.1497917]
[1730109312456,0.0179197,68604.0,68603.0,0.36061462]
[1730109312697,0.0179197,68604.0,68603.0,1.21773664]
[1730109312919,0.02789031,68604.0,68603.0,1.13071229]
[1730109313176,0.0179197,68604.0,68603.0,1.13062509]
[1730109313420,0.0179197,68604.0,68603.0,1.04990681]
[1730109313421,0.02010697,68604.0,68603.0,1.04990681]
[1730109313653,0.02010697,68604.0,68603.0,0.86806604]
[1730109313885,0.02010697,68604.0,68603.0,0.88106604]
[1730109314122,0.02010697,68604.0,68603.0,1.01383204]
[1730109314123,0.03019272,68604.0,68603.0,1.01383204]
[1730109314346,0.03019272,68604.0,68603.0,0.89406604]
[1730109314568,0.03019272,68604.0,68603.0,0.85870511]
[1730109314796,0.02800545,68604.0,68603.0,1.00447125]
[1730109315021,0.02800545,68604.0,68603.0,0.99647953]
[1730109315462,0.0179197,68604.0,68603.0,0.99647953]
[1730109315691,0.0179197,68604.0,68603.0,0.98347953]
[1730109316139,0.0201068,68604.0,68603.0,0.98247953]
[1730109316376,0.0201068,68604.0,68603.0,0.97047953]
[1730109316621,0.0201068,68604.0,68603.0,0.99547953]
[1730109317055,0.0201068,68604.0,68603.0,0.99146534]
[1730109317271,0.0201068,68604.0,68603.0,0.99647953]
[1730109317995,0.0201068,68604.0,68603.0,1.00446357]
[1730109319133,0.0201068,68604.0,68603.0,0.99647953]
[1730109319805,0.1209298,68604.0,68603.0,0.98347953]
[1730109320300,0.1209298,68604.0,68603.0,0.99647953]
[1730109320520,0.1209298,68604.0,68603.0,0.94841843]
[1730109320750,0.1209298,68604.0,68603.0,0.9704381]
[1730109321193,0.1209298,68604.0,68603.0,0.9834381]
[1730109322092,0.1209298,68604.0,68603.0,0.9964381]
[1730109322313,0.1209298,68604.0,68603.0,0.9704381]
[1730109322537,0.1209298,68604.0,68603.0,0.9834381]
[1730109322757,0.1209298,68604.0,68603.0,0.9964381]
[1730109324770,0.1209298,68604.0,68603.0,0.99642298]
[1730109325415,0.08808753,68604.0,68603.0,0.99642298]
[1730109325898,0.08808753,68604.0,68603.0,1.09642298]
[1730109327893,0.08808753,68604.0,68603.0,1.10723614]
[1730109328113,0.08808753,68604.0,68603.0,1.08523159]
[1730109328342,0.08808753,68604.0,68603.0,1.09643597]
[1730109328560,0.08808753,68604.0,68603.0,1.10724932]
[1730109328776,0.2189062,68616.0,68612.0,0.145745]
[1730109329000,0.2189062,68616.0,68614.0,0.00394862]
[1730109329222,0.31926444,68627.0,68615.0,0.45078629]
[1730109329449,0.5,68618.0,68616.0,0.0328385]
[1730109329662,0.5,68618.0,68617.0,0.0328385]
[1730109330109,0.52283128,68618.0,68617.0,0.62818312]
[1730109330359,0.52283128,68618.0,68617.0,0.77473831]
[1730109330360,0.5298841,68618.0,68617.0,0.77473831]
[1730109330574,0.5298841,68618.0,68617.0,0.77868693]
[1730109330801,0.5298841,68618.0,68617.0,0.75666573]
[1730109331021,0.52283128,68618.0,68617.0,0.7785454]
[1730109331249,0.52283128,68618.0,68617.0,0.77459678]
[1730109331469,0.50705282,68618.0,68617.0,0.7875454]
[1730109331967,0.50705282,68618.0,68617.0,0.7885454]
[1730109332215,0.50705282,68618.0,68617.0,0.78855089]
[1730109332448,0.5,68618.0,68617.0,0.78855089]
[1730109332679,0.5,68618.0,68617.0,0.80655089]
[1730109332909,0.5070512,68618.0,68617.0,1.11605089]
[1730109333151,0.5,68618.0,68617.0,1.13405089]
[1730109333392,0.5070512,68618.0,68617.0,1.14905089]
[1730109333615,0.5070512,68618.0,68617.0,1.13605089]
[1730109333849,0.5070512,68618.0,68617.0,1.13405089]
[1730109334080,0.5070512,68618.0,68617.0,1.14705089]
[1730109334305,0.5070512,68618.0,68617.0,1.11405089]
[1730109334753,0.5070512,68618.0,68617.0,1.10105089]
[1730109335203,0.5070512,68618.0,68617.0,1.08805089]
[1730109335656,0.5070512,68618.0,68617.0,1.10105089]
[1730109335875,0.5070512,68618.0,68617.0,1.05534843]
[1730109336094,0.5,68618.0,68617.0,1.08807891]
[1730109336328,0.5,68618.0,68617.0,1.11408368]
[1730109336549,0.5070512,68618.0,68617.0,1.11408368]
[1730109337022,0.5070512,68618.0,68617.0,1.12275328]
[1730109337242,0.5070512,68618.0,68617.0,1.21633498]
[1730109337243,0.46144907,68618.0,68617.0,1.21633498]
[1730109337471,0.45439787,68618.0,68617.0,1.16375328]
[1730109337684,0.46153964,68618.0,68617.0,1.20687126]
[1730109337909,0.45439787,68618.0,68617.0,1.18520166]
[1730109338144,0.46153964,68618.0,68617.0,1.20187469]
[1730109338358,0.46153964,68618.0,68617.0,1.15875779]
[1730109338581,0.46153964,68618.0,68617.0,1.20187505]
[1730109338794,0.45439787,68618.0,68617.0,1.17322151]
[1730109339233,0.46178693,68618.0,68617.0,1.17322151]
[1730109339503,0.46178693,68618.0,68617.0,1.3554611]
[1730109339716,0.46178693,68618.0,68617.0,1.36051499]
[1730109339949,0.45439787,68618.0,68617.0,1.36051499]
[1730109340164,0.45439787,68618.0,68617.0,1.5197295]
[1730109340396,0.42896538,68618.0,68617.0,1.34751499]
[1730109340617,0.42156429,68618.0,68617.0,1.20195237]
[1730109340834,0.42896538,68618.0,68617.0,1.1502754]
[1730109341051,0.42896538,68618.0,68617.0,1.1372754]
[1730109341288,0.42896538,68618.0,68617.0,1.29652114]
[1730109341518,0.42896538,68618.0,68617.0,1.30952114]
[1730109341744,0.42156429,68618.0,68617.0,1.12281168]
[1730109341964,0.42156429,68618.0,68617.0,1.20052031]
[1730109342174,0.42895514,68618.0,68617.0,1.35980015]
[1730109342390,0.42895514,68618.0,68617.0,1.20198377]
[1730109342607,0.42156429,68618.0,68617.0,1.35979089]
[1730109342824,0.42895514,68618.0,68617.0,1.33379089]
[1730109343041,0.42156429,68618.0,68617.0,0.76757568]
[1730109343335,0.42895514,68618.0,68617.0,0.61311243]
[1730109343553,0.42895514,68618.0,68617.0,0.65460374]
[1730109343989,0.42895514,68618.0,68617.0,0.66760374]
[1730109344227,0.42895514,68618.0,68617.0,0.81333974]
[1730109344661,0.42156429,68618.0,68617.0,0.82633974]
[1730109345109,0.42895514,68618.0,68617.0,0.81333974]
[1730109345340,0.42977714,68618.0,68617.0,0.82633974]
[1730109345579,0.42977714,68618.0,68617.0,0.85654622]
[1730109346243,0.42788118,68618.0,68617.0,0.85654622]
[1730109346467,0.42788118,68618.0,68617.0,0.81333974]
[1730109346686,0.42788118,68618.0,68617.0,0.82633974]
[1730109346910,0.42788118,68618.0,68617.0,0.86955244]
[1730109347197,0.42788118,68618.0,68617.0,0.85655244]
[1730109347417,0.42788118,68618.0,68617.0,0.8133494]
[1730109347636,0.42788118,68618.0,68617.0,1.05064502]
[1730109347859,0.42535394,68618.0,68617.0,0.98593639]
[1730109348095,0.41796309,68618.0,68617.0,0.98593639]
[1730109348333,0.41796309,68618.0,68617.0,1.00040011]
[1730109348549,0.41796309,68618.0,68617.0,1.08663607]
[1730109349012,0.41790483,68618.0,68617.0,1.08663607]
[1730109349483,0.41790483,68618.0,68617.0,1.09373134]
[1730109349738,0.41790483,68618.0,68617.0,1.20629396]
[1730109349970,0.41790483,68618.0,68617.0,1.22075768]
[1730109350201,0.41790483,68618.0,68617.0,1.22115117]
[1730109350436,0.3722984,68618.0,68617.0,1.20668699]
[1730109350659,0.3722984,68618.0,68617.0,0.98593639]
[1730109351386,0.3722984,68618.0,68617.0,1.00041369]
[1730109352064,0.3722984,68618.0,68617.0,0.98741369]
[1730109352288,0.3722984,68618.0,68617.0,1.01341369]
[1730109353213,0.3722984,68618.0,68617.0,0.8538267]
[1730109353435,0.3722984,68618.0,68617.0,1.12636477]
[1730109353694,0.3722984,68618.0,68617.0,1.14381394]
[1730109353915,0.3722984,68618.0,68617.0,1.12933664]
[1730109354147,0.3722984,68618.0,68617.0,1.12938798]
[1730109354368,0.3722984,68618.0,68617.0,0.97332485]
[1730109354809,0.3722984,68618.0,68617.0,0.98632485]
[1730109355057,0.3722984,68618.0,68617.0,0.97332485]
[1730109355519,0.33946429,68618.0,68617.0,0.98632485]
[1730109356678,0.33946429,68618.0,68617.0,1.13393559]
[1730109356909,0.33946429,68618.0,68617.0,1.13393596]
[1730109357386,0.33946429,68618.0,68617.0,1.00535823]
[1730109357617,0.33946429,68618.0,68617.0,1.13558196]
[1730109357851,0.33946429,68618.0,68617.0,0.98340939]
[1730109358080,0.33946429,68618.0,68617.0,1.00536492]
[1730109358521,0.33946429,68618.0,68617.0,0.85962892]
[1730109358811,0.33946429,68618.0,68617.0,0.8379275]
[1730109359049,0.48519829,68618.0,68617.0,0.8379275]
[1730109359270,0.49264816,68618.0,68617.0,0.8379275]
[1730109359507,0.49264816,68618.0,68617.0,0.72979209]
[1730109359727,0.49264816,68618.0,68617.0,0.57533966]
[1730109359949,0.49264816,68618.0,68617.0,0.50549271]
[1730109360193,0.49264816,68618.0,68617.0,0.51376711]
[1730109360429,0.49264816,68618.0,68617.0,0.52676711]
[1730109360678,0.49264816,68618.0,68617.0,0.57499147]
[1730109360913,0.49264816,68618.0,68617.0,0.50981849]
[1730109361166,0.49264816,68618.0,68617.0,0.56633584]
[1730109361415,0.49264816,68618.0,68617.0,0.49246139]
[1730109361651,0.49264816,68618.0,68617.0,0.50546139]
[1730109361652,0.62614816,68618.0,68617.0,0.50546139]
[1730109362367,0.34691416,68618.0,68617.0,0.48320943]
[1730109362595,0.34691416,68618.0,68617.0,0.49245678]
[1730109362818,0.34791416,68618.0,68617.0,0.64296059]
[1730109363041,0.34791416,68618.0,68617.0,0.96650509]
[1730109363268,0.34691416,68618.0,68617.0,0.96516537]
[1730109363494,0.36229364,68618.0,68617.0,0.81171771]
[1730109363736,0.36229364,68618.0,68617.0,0.95745371]
[1730109363981,0.37220232,68618.0,68617.0,0.95745371]
[1730109364229,0.36229364,68618.0,68617.0,1.06606066]
[1730109364448,0.36229364,68618.0,68617.0,1.08101633]
[1730109364676,0.36229364,68618.0,68617.0,0.97145371]
[1730109364901,0.33946429,68618.0,68617.0,0.97145371]
[1730109365132,0.33946429,68618.0,68617.0,0.96845371]
[1730109365620,0.33946429,68618.0,68617.0,0.97945371]
[1730109365845,0.33946429,68618.0,68617.0,0.97942629]
[1730109367733,0.58635108,68618.0,68617.0,0.83369029]
[1730109367984,0.41486429,68618.0,68617.0,0.68318648]
[1730109368222,0.42279488,68618.0,68617.0,0.75222596]
[1730109368441,0.56852888,68618.0,68617.0,0.75617458]
[1730109368668,0.56852888,68618.0,68617.0,0.74846628]
[1730109369355,0.56852888,68618.0,68617.0,0.58799584]
[1730109369822,0.56852888,68618.0,68617.0,0.74850659]
[1730109370274,0.42279488,68618.0,68617.0,0.74853981]
[1730109370522,0.44562556,68618.0,68617.0,0.74853981]
[1730109371225,0.59135956,68618.0,68617.0,0.74853981]
[1730109371451,0.59135956,68618.0,68617.0,0.74855001]
[1730109371679,0.44562556,68618.0,68617.0,0.74855001]
[1730109372152,0.44562556,68618.0,68617.0,0.74857367]
[1730109372378,0.59135956,68618.0,68617.0,0.74857367]
[1730109372603,0.59135956,68618.0,68617.0,0.67937577]
[1730109372831,0.59135956,68618.0,68617.0,0.74463284]
[1730109373297,0.59635956,68618.0,68617.0,0.58411666]
[1730109373540,0.72605956,68618.0,68617.0,0.50145718]
[1730109373794,0.72605956,68618.0,68617.0,0.49220626]
[1730109374239,0.72590882,68618.0,68617.0,0.49220626]
[1730109374511,0.72590882,68618.0,68617.0,0.48120626]
[1730109374736,0.72590882,68618.0,68617.0,0.49045992]
[1730109374959,0.72590882,68618.0,68617.0,0.49145992]
[1730109375399,0.72590882,68618.0,68617.0,0.48220626]
[1730109376353,0.70307814,68618.0,68617.0,0.46032976]
[1730109377274,0.56837814,68618.0,68617.0,0.46032976]
[1730109377723,0.57337814,68618.0,68617.0,0.46032976]
[1730109378661,0.57337814,68618.0,68617.0,0.46032901]
[1730109380262,0.57337814,68618.0,68617.0,0.46025372]
[1730109380711,0.59621021,68618.0,68617.0,0.46025372]
[1730109381592,0.69621021,68618.0,68617.0,0.45185453]
[1730109382051,0.96264859,68618.0,68617.0,0.45925251]
[1730109382343,0.83376159,68618.0,68617.0,0.45185453]
[1730109382574,0.83376159,68618.0,68617.0,0.45185358]
[1730109383017,0.83676159,68618.0,68617.0,0.45185358]
[1730109384551,1.06203061,68618.0,68617.0,0.45185358]
[1730109385212,0.83676159,68618.0,68617.0,0.45185358]
[1730109385441,1.03919854,68618.0,68617.0,0.45185358]
[1730109385684,0.52764414,68618.0,68617.0,0.45185358]
[1730109385934,0.45224414,68618.0,68617.0,0.62509155]
[1730109386381,0.45224414,68618.0,68617.0,0.7929869]
[1730109386601,0.44231355,68618.0,68617.0,0.7929869]
[1730109386826,0.43931355,68618.0,68617.0,0.86592143]
[1730109387047,0.44716581,68618.0,68617.0,0.87892143]
[1730109387265,0.44716581,68618.0,68617.0,1.04456543]
[1730109387497,0.44716581,68618.0,68617.0,0.95333962]
[1730109387713,0.43931355,68618.0,68617.0,0.95333962]
[1730109387932,0.43931355,68618.0,68617.0,0.97933962]
[1730109388795,0.44716419,68618.0,68617.0,0.97933962]
[1730109389044,0.43931355,68618.0,68617.0,0.97936264]
[1730109389275,0.43931355,68618.0,68617.0,1.0662471]
[1730109389747,0.43931355,68618.0,68617.0,0.97936264]
[1730109389969,0.43931355,68618.0,68617.0,1.06624567]
[1730109390194,0.44798175,68618.0,68617.0,1.06623893]
[1730109390415,0.44798175,68618.0,68617.0,0.97935447]
[1730109390857,0.44798175,68618.0,68617.0,1.08796872]
[1730109391072,0.43931355,68618.0,68617.0,0.92984626]
[1730109391291,0.43931355,68618.0,68617.0,0.97935578]
[1730109391737,0.43931355,68618.0,68617.0,0.84132407]
[1730109391978,0.59372603,68618.0,68617.0,0.56619055]
[1730109392423,0.59372603,68618.0,68617.0,0.52274023]
[1730109392900,0.59372603,68618.0,68617.0,0.50535382]
[1730109393110,0.59372603,68618.0,68617.0,0.49611076]
[1730109393341,0.60477741,68618.0,68617.0,0.49611076]
[1730109393586,0.60477741,68618.0,68617.0,0.48524426]
[1730109393825,0.60477741,68618.0,68617.0,0.47224426]
[1730109394062,0.60477741,68618.0,68617.0,0.47562558]
[1730109394300,0.60477741,68618.0,68617.0,0.4672467]
[1730109394515,0.75528122,68618.0,68617.0,0.4712467]
[1730109394929,0.60477741,68618.0,68617.0,0.4712467]
[1730109395439,0.60477741,68618.0,68617.0,0.46385183]
[1730109395654,0.60477741,68618.0,68617.0,0.45585183]
[1730109395880,0.60477741,68618.0,68617.0,0.46085183]
[1730109396339,0.60477741,68618.0,68617.0,0.45685183]
[1730109396558,0.60477741,68618.0,68617.0,0.45485183]
[1730109396784,0.74444066,68618.0,68617.0,0.45023071]
[1730109397000,0.89694447,68618.0,68617.0,0.45023071]
[1730109397230,0.75628122,68618.0,68617.0,0.45023071]
[1730109397484,0.75528122,68618.0,68617.0,0.44723071]
[1730109397717,0.75528122,68618.0,68617.0,0.45185363]
[1730109397941,0.75928122,68618.0,68617.0,0.44723071]
[1730109398159,0.75528122,68618.0,68617.0,0.44723071]
[1730109398600,0.75828122,68618.0,68617.0,0.44723071]
[1730109398832,0.60777741,68618.0,68617.0,0.44723071]
[1730109399059,0.60777741,68618.0,68617.0,0.45185308]
[1730109399283,0.60477741,68618.0,68617.0,0.45185308]
[1730109399502,0.71077741,68618.0,68617.0,0.45385308]
[1730109400666,0.73361096,68618.0,68617.0,0.45385308]
[1730109402024,0.89410684,68618.0,68617.0,0.45385308]
[1730109402241,0.89410684,68618.0,68617.0,0.46124971]
[1730109402719,0.89110684,68618.0,68617.0,0.46024971]
[1730109402938,0.89410684,68618.0,68617.0,0.46949645]
[1730109403154,0.89410684,68618.0,68617.0,0.46849645]
[1730109403155,0.89110684,68618.0,68617.0,0.46849645]
[1730109403590,0.89110684,68618.0,68617.0,0.46949645]
[1730109403823,0.89110684,68618.0,68617.0,0.46849645]
[1730109404527,0.89110684,68618.0,68617.0,0.47249645]
[1730109404978,0.89110684,68618.0,68617.0,0.46324971]
[1730109405201,0.89110684,68618.0,68617.0,0.45123071]
[1730109405449,0.89110684,68618.0,68617.0,0.46324937]
[1730109405855,0.86827329,68618.0,68617.0,0.46724937]
[1730109406336,0.69672603,68618.0,68617.0,0.46724937]
[1730109406579,0.69672603,68618.0,68617.0,0.47649634]
[1730109408026,0.69672603,68618.0,68617.0,0.46724937]
[1730109408483,0.69672603,68618.0,68617.0,0.47649545]
[1730109408937,0.69672603,68618.0,68617.0,0.47649541]
[1730109409175,0.71955823,68618.0,68617.0,0.47649541]
[1730109412772,0.71955823,68618.0,68617.0,0.47649629]
[1730109414566,0.71955823,68618.0,68617.0,0.51999138]
[1730109415239,0.71955823,68618.0,68617.0,0.47649629]
[1730109415470,0.71955823,68618.0,68617.0,0.51999138]
[1730109415708,0.69672603,68618.0,68617.0,0.51999138]
[1730109416173,0.69672603,68618.0,68617.0,0.47649629]
[1730109416399,0.70172603,68618.0,68617.0,0.45523071]
[1730109416642,0.74318141,68618.0,68617.0,0.46725182]
[1730109416891,0.70172603,68618.0,68617.0,0.46725182]
[1730109417341,0.70172603,68618.0,68617.0,0.46325182]
[1730109417567,0.87327329,68618.0,68617.0,0.46325182]
[1730109417781,0.87027329,68618.0,68617.0,0.45925182]
[1730109417996,0.87732467,68618.0,68617.0,0.4518538]
[1730109419368,0.87732467,68618.0,68617.0,0.45925457]
[1730109419817,0.87632467,68618.0,68617.0,0.45925457]
[1730109420053,0.87732467,68618.0,68617.0,0.44723071]
[1730109420276,0.87732467,68618.0,68617.0,0.45925665]
[1730109422602,0.87732467,68618.0,68617.0,0.45926049]
[1730109423296,0.77732467,68618.0,68617.0,0.45926049]
[1730109423531,0.77932467,68618.0,68617.0,0.45926049]